bitfinex/quotes_ETHUSD_20260202
["timestamp","ask_amount","ask_price","bid_price","bid_amount"]
[1770027444958,0.72589243,2292.5,2290.7,0.97120452]
[1770027444959,0.3359703,2292.4,2290.7,0.97120452]
[1770027445122,0.2335703,2292.2,2290.6,0.001]
[1770027445326,0.95946273,2292.2,2290.6,0.001]
[1770027445625,0.2335703,2292.0,2290.6,0.001]
[1770027445823,0.2335703,2291.8,2290.6,0.001]
[1770027446425,0.95946273,2291.8,2290.6,0.001]
[1770027446650,0.72589243,2291.7,2290.6,0.001]
[1770027447516,0.2335703,2291.6,2290.6,0.001]
[1770027447739,0.95946273,2291.6,2290.6,0.001]
[1770027447927,0.2335703,2291.4,2290.4,0.001]
[1770027448131,0.2335703,2291.2,2290.4,0.001]
[1770027448463,1.89457325,2291.1,2289.4,0.001]
[1770027448622,0.72335896,2291.0,2289.4,0.001]
[1770027448824,0.1024,2290.9,2290.8,0.001]
[1770027449044,1.89457325,2291.0,2289.4,0.001]
[1770027449045,0.72335896,2291.0,2289.4,0.001]
[1770027449232,1.17121429,2290.9,2290.5,0.001]
[1770027449436,0.72335896,2291.0,2289.4,0.001]
[1770027449720,0.2335703,2290.9,2289.4,0.90840452]
[1770027449920,0.72335896,2291.0,2289.6,0.001]
[1770027450356,0.3359703,2290.7,2289.4,0.001]
[1770027450569,0.2335703,2290.4,2289.4,0.001]
[1770027450852,1.17121429,2290.5,2289.4,0.001]
[1770027451035,0.27269039,2290.4,2289.4,0.001]
[1770027451232,0.99584935,2290.4,2289.4,0.001]
[1770027452533,0.1024,2290.3,2288.5,0.0008]
[1770027452734,0.2335703,2290.2,2288.5,0.0008]
[1770027453235,0.57772016,2290.1,2288.5,0.0008]
[1770027453436,0.1024,2290.0,2288.5,0.0008]
[1770027453634,0.2335703,2289.9,2288.5,0.0008]
[1770027453847,0.43098723,2289.8,2288.5,0.0008]
[1770027455732,0.1024,2289.6,2288.5,0.0008]
[1770027456034,0.2335703,2289.5,2288.5,0.0008]
[1770027456265,0.37957857,2289.4,2288.5,0.0008]
[1770027457258,0.2335703,2289.3,2288.5,0.0008]
[1770027457459,0.69594646,2289.3,2288.5,0.0008]
[1770027457636,0.46237616,2289.2,2288.5,0.0008]
[1770027458571,0.46237616,2289.2,2287.8,0.0008]
[1770027458787,0.46237616,2289.2,2287.3,0.56051466]
[1770027458788,0.2335703,2289.1,2287.3,0.56051466]
[1770027458990,0.39263929,2289.1,2287.3,0.56051466]
[1770027459278,0.2335703,2289.0,2287.3,0.56051466]
[1770027459965,0.2335703,2289.0,2287.1,0.1010388]
[1770027459966,0.1024,2288.9,2287.1,0.1010388]
[1770027460167,1.30553187,2288.8,2287.1,0.1010388]
[1770027460371,0.45337704,2288.7,2287.1,0.1010388]
[1770027461439,0.45337704,2288.7,2287.5,0.001]
[1770027464291,0.45337704,2288.7,2287.5,9.07404525]
[1770027464486,0.36206039,2288.7,2287.6,0.99900452]
[1770027465561,0.0011,2289.8,2287.6,0.99900452]
[1770027465794,0.0011,2289.8,2287.6,0.90768787]
[1770027465991,0.0011,2289.8,2287.3,0.001]
[1770027465992,1.29,2289.5,2287.3,0.001]
[1770027466314,0.1024,2289.2,2287.3,0.001]
[1770027466513,0.3359703,2289.0,2287.3,0.001]
[1770027466716,0.40955759,2288.9,2287.3,0.001]
[1770027467065,0.2335703,2288.8,2287.3,0.001]
[1770027467311,0.6117134,2288.8,2287.3,0.001]
[1770027467470,0.3686736,2288.7,2287.3,0.001]
[1770027468481,0.3686736,2288.7,2287.5,0.003]
[1770027472681,0.27933338,2288.7,2287.7,10.16580766]
[1770027472987,0.0011,2289.6,2288.1,9.07304525]
[1770027473394,0.0011,2289.6,2288.5,9.07304525]
[1770027475618,0.0011,2289.6,2288.5,10.1654526]
[1770027475787,0.0011,2289.6,2288.5,9.07304525]
[1770027475989,0.0011,2289.4,2288.5,10.16545357]
[1770027476192,0.0011,2289.4,2288.9,9.07304525]
[1770027476489,0.0011,2289.4,2289.0,0.916]
[1770027476686,0.0011,2289.6,2289.0,0.916]
[1770027477099,0.0011,2289.8,2289.0,0.916]
[1770027477706,0.0011,2289.8,2289.1,0.916]
[1770027477990,0.38575956,2290.3,2289.1,0.916]
[1770027480125,0.38575956,2290.3,2289.1,0.916]
[1770027480783,0.38575956,2290.3,2289.0,0.916]
[1770027481187,0.38575956,2290.3,2288.6,1.4535305]
[1770027481188,0.38495956,2290.3,2288.6,1.4535305]
[1770027481413,0.38495956,2290.3,2288.5,9.07304525]
[1770027483926,0.34186956,2290.3,2288.5,9.07304525]
[1770027485590,0.34186956,2290.3,2288.9,9.07304525]
[1770027486615,0.34186956,2290.3,2288.9,0.916]
[1770027489941,0.0011,2290.1,2288.9,0.916]
[1770027490708,0.0011,2290.1,2288.2,1.16059587]
[1770027490910,0.0011,2290.1,2288.3,0.916]
[1770027491138,0.0011,2290.1,2288.3,9.98904525]
[1770027491333,0.0011,2290.1,2289.1,9.07304525]
[1770027491628,0.0011,2290.6,2289.5,9.07304525]
[1770027491830,0.0011,2290.6,2289.2,2.07659587]
[1770027492032,0.0011,2290.6,2289.1,10.61287044]
[1770027492033,0.0011,2290.6,2289.3,0.916]
[1770027492661,0.0011,2290.6,2288.9,1.16059587]
[1770027492819,1.27361429,2290.2,2288.4,0.99890453]
[1770027493022,0.1024,2290.0,2287.8,3.53031141]
[1770027493547,0.2335703,2290.2,2288.0,1.16059587]
[1770027493751,1.40478459,2290.2,2287.9,1.16059587]
[1770027493920,1.17121429,2290.0,2287.8,2.36971554]
[1770027494114,1.17121429,2289.8,2287.7,0.001]
[1770027494331,1.45414468,2289.7,2287.8,0.916]
[1770027495018,1.45414468,2289.7,2287.7,0.001]
[1770027495341,0.28293039,2289.7,2287.8,0.916]
[1770027495542,1.45414468,2289.7,2287.8,0.916]
[1770027496244,0.28293039,2289.7,2287.8,0.916]
[1770027496445,0.28293039,2289.7,2287.8,9.98904525]
[1770027496651,1.17121429,2290.0,2287.8,11.14964112]
[1770027496818,1.17121429,2290.1,2287.9,1.16059587]
[1770027497023,1.17121429,2290.0,2288.0,0.916]
[1770027497452,1.17121429,2289.9,2288.0,0.916]
[1770027497826,1.40478459,2289.8,2288.0,0.916]
[1770027498045,1.27361429,2289.7,2287.7,1.16159587]
[1770027498250,1.17121429,2289.7,2287.9,0.916]
[1770027498547,0.27269039,2289.6,2288.0,1.16059587]
[1770027498732,1.17121429,2290.0,2288.0,1.16059587]
[1770027499362,1.17121429,2290.0,2288.1,0.916]
[1770027499363,1.17121429,2289.7,2288.1,0.916]
[1770027499523,1.17121429,2289.7,2288.0,0.003]
[1770027500053,1.17121429,2289.9,2288.0,0.003]
[1770027500259,1.02654119,2289.9,2288.0,0.003]
[1770027500443,2.34284359,2290.2,2288.0,1.16359587]
[1770027500444,1.55568958,2290.1,2288.0,1.16359587]
[1770027500647,0.1024,2289.9,2288.0,1.16359587]
[1770027500838,1.65808958,2289.9,2288.0,0.919]
[1770027501031,1.9455429,2290.0,2288.0,0.919]
[1770027501358,1.55568958,2289.9,2288.0,0.919]
[1770027503355,1.55568958,2289.9,2288.4,0.001]
[1770027503955,0.0011,2290.1,2288.7,11.0114437]
[1770027504156,0.0011,2290.1,2288.8,1.16059587]
[1770027504734,0.0011,2290.1,2288.9,1.16059587]
[1770027504938,0.0011,2290.3,2289.4,1.16059587]
[1770027505138,0.0011,2290.8,2289.6,1.16059587]
[1770027505324,0.0011,2290.8,2289.7,1.16059587]
[1770027505523,0.0011,2290.8,2289.8,0.27004211]
[1770027505721,0.0011,2290.8,2289.6,0.916]
[1770027507252,0.0011,2290.8,2289.7,1.16059587]
[1770027507455,0.0011,2290.8,2289.8,1.16059587]
[1770027507661,0.0011,2291.3,2290.2,9.85084783]
[1770027507868,0.0011,2291.3,2290.2,1.16059587]
[1770027508065,0.0011,2291.3,2290.3,0.27004211]
[1770027508567,0.0011,2291.3,2289.9,1.16059587]
[1770027508768,0.0011,2291.3,2289.7,11.0114437]
[1770027509067,0.0011,2291.3,2290.0,0.916]
[1770027511835,0.0011,2291.3,2289.3,3.39215084]
[1770027511836,0.0011,2291.3,2289.3,1.74992565]
[1770027512040,0.1024,2291.1,2289.3,1.74992565]
[1770027512236,0.1024,2290.9,2289.3,1.74992565]
[1770027512646,0.3359703,2290.7,2289.3,1.74992565]
[1770027513175,0.1024,2290.3,2288.4,0.001]
[1770027514667,1.65808958,2290.3,2288.4,0.001]
[1770027515854,0.1024,2290.1,2288.4,0.001]
[1770027516472,0.2335703,2290.0,2288.4,0.001]
[1770027516955,0.1024,2289.9,2288.4,0.001]
[1770027517477,0.52596035,2289.9,2288.4,0.001]
[1770027517786,0.1024,2289.9,2288.4,0.001]
[1770027518364,0.2335703,2290.0,2288.4,0.001]
[1770027518559,0.2346703,2290.1,2288.4,0.001]
[1770027518766,0.3370703,2290.1,2288.4,0.001]
[1770027521784,0.1035,2290.1,2288.4,0.001]
[1770027522979,0.2335703,2289.9,2288.4,0.001]
[1770027523176,0.1024,2289.8,2288.4,0.001]
[1770027523680,1.05238884,2289.9,2288.4,0.001]
[1770027523876,0.1024,2290.0,2288.4,0.001]
[1770027530197,0.1024,2290.0,2288.6,0.001]
[1770027531199,0.1024,2290.0,2288.4,0.001]
[1770027531200,0.1024,2289.8,2288.4,0.001]
[1770027531690,0.2335703,2289.7,2288.4,0.001]
[1770027532501,0.2335703,2289.9,2288.4,0.001]
[1770027532798,0.2335703,2290.0,2288.4,0.001]
[1770027532998,0.51444629,2290.0,2288.4,0.001]
[1770027533573,0.28087599,2290.0,2288.4,0.001]
[1770027534396,0.0011,2290.1,2288.4,0.001]
[1770027537313,0.3370703,2290.1,2288.4,0.001]
[1770027537508,1.89275988,2290.1,2288.4,0.001]
[1770027537715,0.0011,2290.1,2288.4,0.001]
[1770027538286,1.65808958,2290.0,2288.4,0.001]
[1770027538696,0.2335703,2289.9,2288.4,0.001]
[1770027538906,0.42356035,2289.9,2288.4,0.001]
[1770027539328,1.55568958,2289.9,2288.4,0.001]
[1770027539498,1.55568958,2289.8,2288.4,0.001]
[1770027539820,1.55568958,2289.9,2288.4,0.001]
[1770027540191,1.55568958,2289.7,2288.4,0.001]
[1770027541104,2.34284359,2289.9,2286.7,1.17660987]
[1770027541105,1.16559587,2288.0,2286.7,1.17660987]
[1770027541300,0.1024,2286.2,2284.5,1.57337655]
[1770027541633,10.06060192,2286.3,2283.9,0.22839092]
[1770027541793,1.00606019,2286.2,2285.3,1.43918797]
[1770027541995,0.20975409,2286.3,2283.6,7.46887869]
[1770027541996,3.17138703,2286.1,2283.6,7.46887869]
[1770027542297,3.12514077,2283.8,2283.1,9.85084783]
[1770027542520,5.48855308,2284.5,2282.5,0.1107042]
[1770027542521,3.07514077,2283.6,2283.2,0.916]
[1770027542737,0.93750995,2283.5,2282.6,9.85084783]
[1770027542929,0.93750995,2283.4,2282.8,1.55618179]
[1770027543123,0.93750995,2283.4,2282.7,0.9961552]
[1770027543124,0.93366566,2283.3,2282.7,1.9121552]
[1770027543350,1.76552008,2285.3,2283.3,2.11373731]
[1770027543642,0.93077578,2285.2,2283.9,9.85084783]
[1770027543958,0.93077578,2285.1,2284.0,0.917]
[1770027544149,1.61452735,2285.3,2284.0,0.917]
[1770027544434,1.61452735,2285.3,2284.1,0.1024]
[1770027545132,1.61452735,2285.3,2284.3,0.001]
[1770027545347,1.47447443,2285.3,2284.6,0.1024]
[1770027545525,1.47447443,2285.3,2284.6,1.09772478]
[1770027545921,0.20975409,2286.3,2285.0,9.85084783]
[1770027546126,0.48141465,2287.3,2285.0,9.85084783]
[1770027546127,0.37901465,2287.3,2285.1,0.917]
[1770027546349,2.40301659,2287.2,2285.2,0.1024]
[1770027546538,0.92854216,2287.1,2285.1,0.917]
[1770027546856,0.92854216,2287.0,2285.2,2.09618478]
[1770027547051,0.92854216,2286.9,2285.2,2.09618478]
[1770027547225,0.92854216,2286.8,2285.2,2.09618478]
[1770027547552,0.92854216,2286.7,2285.2,2.09618478]
[1770027547737,1.47447443,2286.9,2285.2,2.09618478]
[1770027548050,0.92808699,2286.8,2285.2,3.1901728]
[1770027548248,1.47447443,2287.2,2285.3,0.31821728]
[1770027548458,0.92782567,2287.1,2285.3,0.31821728]
[1770027548668,2.4023001,2287.0,2285.3,0.31821728]
[1770027548825,0.92782567,2286.9,2285.3,0.31821728]
[1770027549025,0.92782567,2286.8,2285.3,0.31821728]
[1770027549250,1.47447443,2287.2,2285.3,0.31821728]
[1770027549477,0.92768691,2287.1,2285.3,0.31821728]
[1770027549627,2.40216134,2287.0,2285.3,0.31821728]
[1770027549830,0.92768691,2286.9,2285.3,0.31821728]
[1770027550137,1.47447443,2287.2,2285.3,0.31821728]
[1770027550333,0.92758845,2287.1,2285.3,0.31821728]
[1770027550555,9.85084783,2285.7,2282.5,9.96155203]
[1770027550753,1.26355875,2285.6,2283.3,1.09490473]
[1770027550960,0.92758845,2285.5,2283.0,9.85084783]
[1770027551248,0.92758845,2285.4,2283.0,9.85084783]
[1770027551430,0.92758845,2285.3,2283.5,0.1024]
[1770027551625,0.92758845,2285.2,2283.5,0.72277731]
[1770027551830,0.92758845,2285.1,2283.5,0.72277731]
[1770027552036,0.24976637,2285.6,2283.5,0.72277731]
[1770027552244,0.92729202,2285.5,2283.5,0.72277731]
[1770027552439,0.92729202,2285.4,2283.5,1.81758666]
[1770027552624,0.92729202,2285.3,2283.6,0.78479739]
[1770027552830,0.92729202,2285.3,2283.5,0.72277731]
[1770027552831,0.92729202,2285.2,2283.5,0.72277731]
[1770027553024,0.92729202,2285.1,2283.4,1.65095306]
[1770027553269,0.92729202,2285.0,2283.4,1.65095306]
[1770027553434,0.92729202,2284.9,2283.4,1.65095306]
[1770027553636,0.92729202,2284.8,2283.4,1.65095306]
[1770027553831,0.2335703,2285.3,2283.4,1.65095306]
[1770027554032,0.2335703,2285.1,2283.4,1.65095306]
[1770027554260,0.92583283,2285.0,2283.4,1.65095306]
[1770027554555,0.92583283,2284.9,2283.4,1.65095306]
[1770027554861,1.1725992,2284.8,2283.4,1.65095306]
[1770027555058,0.2335703,2285.3,2283.4,1.65095306]
[1770027555458,0.24976637,2285.2,2283.4,1.65095306]
[1770027555657,0.2335703,2285.1,2283.4,1.65095306]
[1770027556157,0.2335703,2284.9,2283.4,1.65095306]
[1770027556358,0.24976637,2284.8,2283.4,1.65095306]
[1770027556579,0.24976637,2284.8,2283.9,0.001]
[1770027558506,3.08936027,2286.1,2283.9,0.001]
[1770027558651,0.5587024,2286.0,2283.9,0.001]
[1770027560152,1.15482794,2285.6,2283.9,0.001]
[1770027560672,0.24976637,2285.5,2283.9,0.001]
[1770027562680,1.15482794,2285.7,2283.9,0.001]
[1770027562852,0.24976637,2285.6,2283.9,0.001]
[1770027563160,1.40459431,2285.6,2283.9,0.001]
[1770027564171,1.15482794,2285.5,2283.9,0.001]
[1770027565305,1.15482794,2285.3,2283.9,0.001]
[1770027566167,1.15482794,2285.2,2283.9,0.001]
[1770027566769,0.93043735,2285.1,2283.9,0.001]
[1770027566971,0.93043735,2285.0,2283.9,0.001]
[1770027567169,0.93043735,2284.9,2283.9,0.001]
[1770027567370,0.93043735,2284.8,2283.9,0.001]
[1770027567572,0.24976637,2285.0,2283.9,0.001]
[1770027567775,0.93246127,2284.9,2283.9,0.001]
[1770027567974,0.93246127,2284.8,2283.9,0.001]
[1770027568290,0.93478585,2284.7,2283.9,0.001]
[1770027568463,0.93478585,2284.6,2283.9,0.001]
[1770027568663,1.15482794,2284.9,2283.9,0.001]
[1770027568979,1.18476509,2284.8,2283.9,0.001]
[1770027569179,1.15482794,2284.6,2283.9,0.001]
[1770027569378,0.93499872,2284.5,2283.9,0.001]
[1770027569582,0.93499872,2284.4,2283.9,0.001]
[1770027569784,0.93499872,2284.3,2283.9,0.001]
[1770027569979,1.15482794,2284.6,2283.9,0.001]
[1770027570190,0.93831809,2284.5,2283.9,0.001]
[1770027570401,0.93831809,2284.4,2283.9,0.001]
[1770027570583,0.93849983,2284.3,2284.1,0.001]
[1770027570793,0.93849983,2284.2,2283.4,1.53200715]
[1770027570991,1.17358648,2283.6,2282.5,0.1107042]
[1770027571301,2.34717296,2284.0,2282.7,1.09517281]
[1770027571504,2.34717296,2284.3,2282.9,0.001]
[1770027571870,2.59693933,2284.2,2282.9,0.001]
[1770027572096,2.34717296,2284.2,2282.9,0.001]
[1770027572281,0.24976637,2284.1,2282.9,0.001]
[1770027572484,2.34717296,2284.4,2282.9,9.13297778]
[1770027572784,1.56390262,2284.2,2283.1,1.00499778]
[1770027573300,0.24976637,2284.1,2283.1,1.00499778]
[1770027573599,1.81366899,2284.1,2283.1,1.00499778]
[1770027573890,1.56390262,2284.0,2282.9,0.001]
[1770027574296,1.56390262,2283.7,2282.9,0.001]
[1770027574695,0.24976637,2283.6,2282.9,0.001]
[1770027576381,1.56390262,2284.3,2283.2,9.13197778]
[1770027576585,1.56390262,2284.4,2283.3,0.91319778]
[1770027576909,1.56390262,2284.6,2283.5,9.13197778]
[1770027577095,1.56390262,2285.0,2283.5,9.13197778]
[1770027577293,1.56390262,2285.3,2283.5,9.13197778]
[1770027578300,1.56390262,2285.3,2283.6,1.09476265]
[1770027579504,1.56390262,2285.2,2283.6,1.09476265]
[1770027579703,1.56390262,2285.2,2283.5,13.51110075]
[1770027579704,1.56390262,2285.0,2283.7,1.46058634]
[1770027579908,1.56390262,2285.0,2283.8,0.918]
[1770027580203,1.56390262,2285.1,2283.8,0.918]
[1770027580402,1.56390262,2285.0,2283.8,0.918]
[1770027580589,1.56390262,2285.0,2283.9,0.34732994]
[1770027581434,1.56390262,2285.3,2284.3,9.13197778]
[1770027581582,0.0011,2285.6,2284.7,9.13197778]
[1770027581906,0.0011,2285.6,2284.8,0.918]
[1770027583219,0.94136998,2285.5,2284.8,0.918]
[1770027583394,0.0011,2285.6,2284.8,0.918]
[1770027584282,0.0011,2285.4,2284.8,0.918]
[1770027586887,0.0011,2285.4,2284.8,0.8216]
[1770027587127,0.0011,2285.4,2284.1,9.13197778]
[1770027587426,0.94004851,2285.3,2284.2,0.91319778]
[1770027587630,0.94004851,2285.2,2284.2,0.91319778]
[1770027587935,0.0011,2285.4,2284.2,0.91319778]
[1770027588103,0.0011,2285.4,2284.2,2.00764236]
[1770027588307,0.0011,2285.4,2284.2,0.91319778]
[1770027588614,0.0011,2285.4,2284.3,1.20576744]
[1770027591706,0.93976811,2285.3,2284.3,1.20576744]
[1770027591907,0.0011,2285.4,2284.1,0.918]
[1770027592134,0.93980465,2285.3,2284.1,0.918]
[1770027592294,0.0011,2285.4,2284.1,0.918]
[1770027592495,0.93978781,2285.3,2284.1,0.918]
[1770027592808,0.93983522,2285.2,2283.9,0.34732994]
[1770027593013,0.0011,2285.4,2284.0,10.04997778]
[1770027593324,0.9398213,2285.3,2284.0,0.918]
[1770027593492,0.9398213,2285.2,2284.0,0.918]
[1770027593798,0.0011,2285.4,2284.0,0.918]
[1770027593999,0.93981665,2285.3,2284.0,0.918]
[1770027594204,0.0011,2285.4,2284.0,0.918]
[1770027594427,0.93980726,2285.3,2284.0,0.918]
[1770027594618,0.0011,2285.4,2284.0,0.918]
[1770027594822,0.93980839,2285.3,2284.0,0.918]
[1770027595024,0.93980839,2285.2,2284.0,0.918]
[1770027595333,0.0011,2285.4,2284.0,0.918]
[1770027595523,0.93982635,2285.3,2284.0,0.918]
[1770027595708,0.93982635,2285.2,2284.0,0.918]
[1770027595908,0.0011,2285.4,2284.0,0.918]
[1770027596107,0.93982831,2285.3,2284.0,0.918]
[1770027596312,0.93982831,2285.2,2284.0,0.918]
[1770027596501,0.93982831,2285.1,2284.0,0.918]
[1770027596702,0.93991778,2285.0,2284.0,0.918]
[1770027596903,1.56500262,2285.4,2284.0,0.918]
[1770027597145,1.33113477,2285.3,2284.0,0.918]
[1770027597325,0.93991721,2285.2,2284.0,0.918]
[1770027597635,0.93991721,2285.1,2284.0,0.918]
[1770027597875,0.93991721,2285.0,2284.0,0.918]
[1770027598047,0.93991721,2284.9,2284.0,0.918]
[1770027598347,0.39121756,2285.3,2284.0,0.918]
[1770027598503,0.93994452,2285.2,2284.0,0.918]
[1770027598711,0.93994452,2285.1,2284.0,0.918]
[1770027598914,0.0011,2285.4,2284.2,0.001]
[1770027599214,0.0011,2285.2,2284.2,0.001]
[1770027600451,0.0011,2285.6,2284.8,9.13197778]
[1770027600752,0.0011,2285.6,2284.9,2.92530583]
[1770027601206,0.0003,2286.1,2285.2,9.13197778]
[1770027601407,0.3490644,2287.2,2285.6,9.13197778]
[1770027601629,1.56390262,2287.9,2286.5,9.13197778]
[1770027601829,0.93828453,2287.8,2286.5,0.918]
[1770027602035,0.93828453,2287.7,2285.2,9.13197778]
[1770027602269,1.56390262,2287.5,2285.3,1.83119778]
[1770027602491,2.50218715,2287.4,2285.3,1.83119778]
[1770027602696,0.93828453,2287.3,2285.3,1.83119778]
[1770027602892,0.93828453,2287.2,2285.6,9.13197778]
[1770027603166,1.56390262,2287.7,2285.4,0.1024]
[1770027603363,0.93730438,2287.6,2285.4,2.21623079]
[1770027603539,0.93730438,2287.5,2285.6,9.13197778]
[1770027603755,0.93730438,2287.4,2285.6,9.13197778]
[1770027603937,1.56390262,2287.8,2285.6,9.13197778]
[1770027603938,0.93730438,2287.3,2285.6,9.13197778]
[1770027604267,1.56390262,2287.7,2285.6,9.13197778]
[1770027604480,0.93709037,2287.6,2285.7,0.91319778]
[1770027604630,1.56390262,2287.7,2285.7,0.91319778]
[1770027604631,0.93709037,2287.5,2285.7,0.91319778]
[1770027604833,0.93709037,2287.4,2285.7,0.91319778]
[1770027605141,0.93709037,2287.3,2285.7,0.91319778]
[1770027605468,1.56390262,2287.8,2285.7,2.00693736]
[1770027605680,2.89270617,2287.7,2285.8,1.55141325]
[1770027605837,0.93746252,2287.6,2285.8,1.55141325]
[1770027606559,0.93746252,2287.5,2285.8,1.55141325]
[1770027606760,0.93746252,2287.4,2285.5,1.09384237]
[1770027606957,0.93746252,2287.3,2285.5,1.09384237]
[1770027607158,1.56390262,2287.7,2285.5,1.09384237]
[1770027607362,0.93736344,2287.6,2285.6,1.09379792]
[1770027607565,0.93736344,2287.5,2285.6,1.09379792]
[1770027607868,0.93736344,2287.4,2285.4,2.21623079]
[1770027608175,0.93736344,2287.3,2285.5,1.84485263]
[1770027608474,2.34950767,2287.9,2285.5,1.84485263]
[1770027608475,0.93718914,2287.2,2285.5,0.75100178]
[1770027608646,1.56390262,2287.4,2285.4,3.03183079]
[1770027608647,0.93718914,2287.1,2285.4,2.0118916]
[1770027608855,1.56390262,2287.6,2285.7,9.13197778]
[1770027609045,0.93710531,2287.5,2285.7,9.13197778]
[1770027609240,0.93710531,2287.4,2285.7,9.13197778]
[1770027609446,0.93710531,2287.3,2285.8,0.91319778]
[1770027609646,1.56390262,2287.7,2285.8,0.91319778]
[1770027609846,0.93692163,2287.6,2285.8,0.91319778]
[1770027610173,0.93692163,2287.5,2285.8,0.91319778]
[1770027610353,0.93692163,2287.4,2285.8,0.91319778]
[1770027610554,1.56390262,2288.0,2286.0,9.13197778]
[1770027610745,2.50070949,2287.9,2285.7,1.19615683]
[1770027610949,1.56390262,2288.7,2286.5,9.13197778]
[1770027611150,0.93651428,2288.6,2286.6,0.918]
[1770027611370,0.93651428,2288.5,2286.6,0.918]
[1770027611652,0.35595698,2288.8,2287.3,9.13197778]
[1770027611868,1.56390262,2289.4,2287.7,9.13197778]
[1770027612077,2.34950767,2289.6,2287.4,0.918]
[1770027612078,0.93551679,2289.3,2287.4,0.918]
[1770027612290,0.93551679,2289.2,2287.4,0.918]
[1770027612490,1.56390262,2289.6,2287.4,0.918]
[1770027612700,0.93399753,2289.5,2287.5,1.00499778]
[1770027612850,12.64510981,2289.8,2287.5,1.00499778]
[1770027612851,0.93399753,2289.4,2287.5,1.00499778]
[1770027613180,2.72652698,2289.8,2287.5,1.00499778]
[1770027613353,0.9325911,2289.7,2287.5,1.00499778]
[1770027613555,0.9325911,2289.6,2287.5,1.00499778]
[1770027613755,0.9325911,2289.5,2287.5,1.00499778]
[1770027613956,0.0011,2288.4,2287.6,0.30159188]
[1770027615796,0.0011,2288.4,2287.4,0.918]
[1770027616288,3.33388463,2289.8,2287.8,9.13197778]
[1770027616289,0.24562436,2289.8,2287.8,9.13197778]
[1770027616489,0.93022982,2289.7,2287.8,9.13197778]
[1770027616692,0.0011,2289.8,2287.8,9.13197778]
[1770027616856,0.0011,2289.8,2287.8,10.22470896]
[1770027617054,0.0011,2289.8,2287.9,1.09359809]
[1770027617656,0.92933892,2289.7,2287.4,0.918]
[1770027617859,0.0011,2289.8,2287.4,2.01091486]
[1770027618062,0.92935287,2289.7,2287.4,2.01091219]
[1770027618272,0.0011,2289.8,2287.4,2.01091219]
[1770027618584,0.0011,2289.8,2288.0,9.13197778]
[1770027618792,0.0011,2289.8,2288.1,0.91319778]
[1770027619783,0.0011,2289.8,2288.2,0.917]
[1770027623186,0.2335703,2289.0,2286.7,1.00499778]
[1770027623496,0.3359703,2288.7,2286.0,1.971]
[1770027623796,0.2335703,2287.9,2286.0,1.971]
[1770027623966,9.85335595,2288.3,2285.9,0.918]
[1770027624176,0.1024,2288.5,2286.2,1.09348879]
[1770027624379,0.92952199,2288.4,2286.0,1.19597781]
[1770027624588,0.1024,2288.5,2285.9,0.918]
[1770027624910,0.1024,2288.5,2286.2,1.09348626]
[1770027625197,0.93037919,2288.4,2286.1,1.09353433]
[1770027625456,0.2335703,2288.2,2286.0,0.52927884]
[1770027625571,0.1024,2288.6,2286.0,1.19601068]
[1770027625766,0.2335703,2288.3,2286.0,0.1024]
[1770027626015,0.3359703,2288.1,2285.1,3.92527247]
[1770027626213,0.3359703,2288.1,2284.9,0.003]
[1770027626214,0.91650483,2285.1,2284.2,0.001]
[1770027626516,0.917,2285.9,2284.2,0.001]
[1770027626805,0.2335703,2285.7,2284.2,0.001]
[1770027627012,1.95164064,2285.6,2284.2,0.001]
[1770027627228,0.93224064,2285.5,2284.2,0.001]
[1770027627370,0.917,2285.6,2284.2,0.001]
[1770027627575,0.93199008,2285.5,2284.2,0.001]
[1770027627824,1.56390262,2286.0,2284.2,0.001]
[1770027627988,2.24029241,2285.9,2284.2,0.001]
[1770027628184,0.93195138,2285.8,2284.2,0.001]
[1770027628497,0.93195138,2285.7,2284.2,0.001]
[1770027628707,0.2335703,2285.8,2284.2,0.001]
[1770027628905,0.9320886,2285.7,2284.2,0.001]
[1770027629201,0.2335703,2285.8,2284.2,0.001]
[1770027629373,9.36062365,2286.4,2284.4,9.69775286]
[1770027629573,9.36062365,2286.4,2285.0,0.1024]
[1770027629574,7.79672103,2286.4,2285.0,0.1024]
[1770027629806,7.79672103,2286.4,2285.4,9.69775286]
[1770027630099,7.79672103,2286.4,2285.0,0.1024]
[1770027631275,7.79672103,2286.4,2285.2,0.1024]
[1770027632022,7.79672103,2286.4,2284.9,9.69775286]
[1770027632230,7.79672103,2286.4,2285.0,2.06386274]
[1770027632416,7.79672103,2286.4,2285.0,1.19649096]
[1770027633097,7.79672103,2286.4,2285.0,0.1024]
[1770027633620,7.79672103,2286.4,2285.0,1.0940834]
[1770027634129,7.79672103,2286.4,2283.0,2.12691319]
[1770027634130,1.16408705,2285.9,2283.0,2.12691319]
[1770027634326,2.23922984,2286.2,2283.9,0.1024]
[1770027634517,0.23495077,2286.1,2283.9,0.1024]
[1770027635090,0.2335703,2286.0,2283.9,0.1024]
[1770027635330,0.23495077,2286.1,2284.5,9.69775286]
[1770027635622,1.07514279,2286.2,2284.5,9.69775286]
[1770027636326,1.07514279,2286.2,2284.3,1.1968232]
[1770027636992,1.07514279,2286.2,2284.2,0.001]
[1770027637199,1.07514279,2286.2,2284.2,1.09546888]
[1770027637611,1.07514279,2286.2,2284.2,0.001]
[1770027637805,1.07514279,2286.2,2284.2,1.51815166]
[1770027638229,1.07514279,2286.2,2284.2,1.51735166]
[1770027640004,1.07514279,2286.2,2284.7,0.001]
[1770027640206,0.0011,2286.0,2284.7,0.001]
[1770027640932,0.0011,2286.0,2284.3,0.69898775]
[1770027641460,0.0011,2286.0,2283.5,0.001]
[1770027641461,1.16518705,2286.0,2283.5,0.001]
[1770027641605,0.1024,2285.8,2283.5,0.001]
[1770027641940,1.05514429,2285.7,2283.5,0.919]
[1770027642604,0.0011,2286.2,2285.7,9.69775286]
[1770027642808,0.39472073,2287.8,2285.7,9.69775286]
[1770027643532,0.39472073,2287.8,2285.5,0.918]
[1770027644149,0.366,2287.6,2285.5,0.918]
[1770027644318,0.39472073,2287.8,2285.5,0.918]
[1770027644633,0.76372073,2287.8,2285.5,0.918]